Cogmind - Beta 13 @@@ ROGUE MODE // 2024.04.12 @ 00:41:55 Player: Tenderz Result: Destroyed by AL-US8(R) with Subdweller Machine Gun Performance ------------- Evolutions (0) 0 Regions Visited (2) 400 Robots Destroyed (25) 125 Value Destroyed (466) 466 Prototype IDs (0) 0 Alien Tech Used (0) 0 Bonus (0) 0 TOTAL SCORE: 991 Bonus ------- None Cogmind --------- Core Integrity 0/250 Matter 142/300 Energy 100/100 System Corruption 3% Temperature Cool (0) Movement Walking (260) Ox2 Location -10/Subcaves Parts ------- > --- POWER (1) -------- (None) > --- PROPULSION (2) --- Aluminum Leg Improved Aluminum Leg > --- UTILITY (2) ------ High-capacity Storage Unit Core Shielding > --- WEAPON (2) ------- Slug Cannon Flail > --- INVENTORY (20) --- Light Treads Light Treads Aluminum Leg Wheel Compact Wheel Compact Wheel Small Storage Unit Medium Matter Pod (100) Weight Redist. System Visual Processing Unit Targeting Computer Utility Shielding Makeshift Light Armor Plating EM Shotgun EM Shotgun Autogun Autogun Scrap Shield Fragment (47) Scrap Shield Fragment (38) Peak State ------------ > --- POWER ------------ Ion Engine > --- PROPULSION ------- Improved Aluminum Leg Compact Wheel > --- UTILITY ---------- High-capacity Storage Unit Seismic Detector > --- WEAPON ----------- Autogun Slug Cannon > --- INVENTORY -------- Light Treads Light Treads Aluminum Leg Aluminum Leg Wheel Compact Wheel Small Storage Unit Medium Matter Pod Weight Redist. System Visual Processing Unit Targeting Computer Core Shielding Utility Shielding Makeshift Light Armor Plating EM Shotgun EM Shotgun Autogun Flail Scrap Shield Fragment Scrap Shield Fragment [Rating: 15] Favorites ----------- Power Light Ion Engine Engine Light Ion Engine Propulsion Improved Aluminum Leg Leg Improved Aluminum Leg Wheel Wheel Utility Seismic Detector Device Seismic Detector Storage High-capacity Storage Unit Protection Core Shielding Weapon Autogun Energy Gun EM Shotgun Ballistic Gun Autogun Ballistic Cannon Slug Cannon Impact Weapon Flail Build | -11 -10 -10 ------- Run | Yrd Mat Sub Slots Evolved . | . . . Power . | . . . Propulsion . | . . . Utility . | . . . Weapon . | . . . Parts Attached 45 | 9 26 10 Power 2 | 1 1 . Engine 2 | 1 1 . Core . | . . . Reactor . | . . . Propulsion 21 | 2 15 4 Treads . | . . . Leg 10 | 2 6 2 Wheel 11 | . 9 2 Hover . | . . . Flight . | . . . Utility 7 | 4 2 1 Device 2 | 2 . . Storage 4 | 2 2 . Processor . | . . . Hackware . | . . . Protection 1 | . . 1 Artifact . | . . . Weapon 15 | 2 8 5 Energy Gun 4 | 1 2 1 Energy Cannon . | . . . Ballistic Gun 5 | 1 3 1 Ballistic Cannon 1 | . . 1 Launcher . | . . . Special Weapon . | . . . Impact Weapon 5 | . 3 2 Slashing Weapon . | . . . Piercing Weapon . | . . . Special Melee Weapon . | . . . Unidentified Prototypes . | . . . Parts Lost 6 | . 4 2 Power 2 | . 1 1 Propulsion 2 | . 2 . Utility 1 | . . 1 Weapon 1 | . 1 . Highest Loss Streak 2 | . 2 2 To Critical Strikes . | . . . Average Slot Usage (%) 99 | . 99 99 Engine 13 | . 13 14 Leg 18 | . 19 15 Wheel 8 | . 8 12 Device 13 | . 14 13 Storage 14 | . 14 14 Energy Gun 7 | . 7 8 Ballistic Gun 14 | . 15 8 Impact Weapon 4 | . 4 4 Naked Turns . | . . . Heaviest Build 56 | 13 52 56 Greatest Support 32 | 20 32 32 Greatest Overweight (x) 4 | . 4 2 Average Overweight (x) 1 | . 1 1 Largest Inventory Capacity 20 | 8 20 20 Average Capacity 18 | 7 18 20 Most Carried 20 | 8 20 20 Average Carried 17 | 5 17 19 Final Capacity 20 | 8 20 20 Final Carried 20 | 8 20 19 Class Distribution -------------------- 100% | Mutant Dominant Class ---------------- Mutant | -10/Materials Mutant | -10/Subcaves Resources | -11 -10 -10 ----------- Run | Yrd Mat Sub Matter Collected 783 | 305 428 50 Remotely . | . . . Salvage Created 938 | 116 746 76 Parts 52 | 8 38 6 Haulers Intercepted 2 | . 2 . Recyclers Shooed . | . . . Parts Field Recycled . | . . . Retrieved Matter . | . . . Parts Self-Destructed . | . . . Prevented . | . . . Kills | -11 -10 -10 ------- Run | Yrd Mat Sub Combat Hostiles Destroyed 14 | . 12 2 Melee 3 | . 2 1 Guns 8 | . 7 1 AOE 2 | . 2 . Classes Destroyed 9 | 2 6 1 Builder 1 | . 1 . Tunneler 2 | 2 . . Hauler 2 | . 2 . Recycler 4 | 1 3 . Operator 1 | . 1 . Watcher 1 | . 1 . Swarmer 6 | . 6 . Grunt 6 | . 6 . Subdweller 2 | . . 2 Best Kill Streak 7 | 3 7 1 Combat Bots Only 4 | . 4 1 Max Kills in Single Turn 2 | 2 2 1 Gunslinging . | . . . Exploded 1 | . 1 . Melee 1 | . 1 1 Uniques/NPCs Destroyed . | . . . Combat | -11 -10 -10 -------- Run | Yrd Mat Sub Hostile Shots Fired 112 | . 83 29 Missed 27 | . 19 8 Damage Taken 1385 | . 921 464 Core 266 | . 179 87 Absorbed by Shields . | . . . Redirected to Shielding 4 | . . 4 Core Remaining (%) 100 | 100 . . Volleys Fired 47 | 5 23 19 Largest 2 | 2 2 2 Hottest 71 | 60 68 71 Shots Fired 86 | 10 46 30 Gun 75 | 10 46 19 Cannon 11 | . . 11 Launcher . | . . . Special . | . . . Kinetic 50 | 5 23 22 Thermal . | . . . Explosive . | . . . Electromagnetic 36 | 5 23 8 Robot Hit Streak 14 | 3 14 13 Robot Miss Streak 5 | 3 2 5 Penetration Max . | . . . Secondary Targets . | . . . Shots Hit Robots 63 | 5 38 20 Core Hits 32 | 4 23 5 Critical Kills . | . . . Critical Parts Destroyed 1 | . 1 . Critical Strikes 2 | . 1 1 Destroy 1 | . . 1 Smash 1 | . 1 . Melee Attacks 24 | . 22 2 Impact 24 | . 22 2 Slashing . | . . . Piercing . | . . . Sneak Attacks 2 | . 2 . Combat Hostiles . | . . . Follow-up Attacks . | . . . Damage Inflicted 1282 | 80 813 389 Guns 680 | 80 412 188 Cannons 156 | . . 156 Explosions 159 | . 159 . Melee 287 | . 242 45 Ramming . | . . . Kinetic 483 | 50 186 247 Thermal 159 | . 159 . Explosive . | . . . Electromagnetic 353 | 30 226 97 Impact 287 | . 242 45 Slashing . | . . . Piercing . | . . . Highest Corruption 3 | . 3 3 Average Corruption 3 | . 3 3 Corruption Purged . | . . . Corruption Blocked . | . . . Effects 16 | . 11 5 Message Errors 6 | . 4 2 Matter Fused 2 | . 1 1 Energy Discharges 1 | . 1 . Data Loss (major) 2 | . 2 . Misfires 2 | . 1 1 Alerts 1 | . 1 . Weapon Failures 2 | . 1 1 Overload Shots . | . . . Overflow Damage 29 | . 29 . Projectiles . | . . . Explosions . | . . . Melee 29 | . 29 . Knockbacks 1 | . . 1 Impact . | . . . Kinetic 1 | . . 1 Secondary . | . . . Self-Inflicted Damage 119 | . 119 . Shots 2 | . 2 . Rammed . | . . . Targets Rammed . | . . . Kicked . | . . . Crushed . | . . . Highest Temperature 48 | . 48 . Average Temperature 22 | . 22 . Received Heat Transfer 180 | . 150 30 Siege Activations . | . . . Robots Corrupted 1 | . 1 . Combat Hostiles . | . . . Parts Fried 5 | . 5 . Impact Corruptions 3 | . 3 . Robots Melted . | . . . Combat Hostiles . | . . . Parts Melted . | . . . Heat Transferred 150 | . 150 . Parts Sabotaged . | . . . Parts Stolen . | . . . Parts Stripped . | . . . Power Chain Reactions 4 | . 4 . Alert | -11 -10 -10 ------- Run | Yrd Mat Sub Peak Influence 213 | 15 213 . Initial 9 | . 9 . Average 43 | 7 46 . Maximum Alert Level 1 | . 1 . Low Security (%) 93 | 100 92 . Level 1 6 | . 7 . Level 2 . | . . . Level 3 . | . . . Level 4 . | . . . Level 5 . | . . . High Security . | . . . Max Security . | . . . Squads Dispatched 3 | . 3 . Investigation . | . . . Extermination . | . . . Reinforcement 3 | . 3 . Assault . | . . . Garrison . | . . . Intercept . | . . . Searches Triggered . | . . . Construction Impeded . | . . . Haulers Reinforced . | . . . Active Scanning Responses . | . . . Cargo Convoy Interrupts . | . . . Stealth | -11 -10 -10 --------- Run | Yrd Mat Sub Distress Signals 1 | . 1 . Communications Jammed . | . . . Distress Signals . | . . . Times Spotted 21 | . 18 3 Peak Tracking Total 5 | . 5 2 Tactical Retreats 1 | . 1 . Traps | -11 -10 -10 ------- Run | Yrd Mat Sub Traps Triggered . | . . . Indirectly . | . . . Trap Hack Attempts . | . . . Triggered . | . . . Disarmed 6 | . 6 . Reprogrammed . | . . . Reused . | . . . Traps Extracted . | . . . Installed . | . . . Triggered . | . . . Machines | -11 -10 -10 ---------- Run | Yrd Mat Sub Machines Disabled 3 | . 3 . Max in Single Turn 2 | . 2 . Machines Repaired . | . . . Machines Dismantled . | . . . Machines Sabotaged . | . . . Overloaded Fab Kills . | . . . Hacking | -11 -10 -10 --------- Run | Yrd Mat Sub Machines Accessed 5 | . 5 . Terminals 4 | . 4 . Fabricators . | . . . Repair Stations . | . . . Recycling Units 1 | . 1 . Scanalyzers . | . . . Garrison Access . | . . . Total Hacks 14 | . 14 . Successful 6 | . 6 . Failed 8 | . 8 . Catastrophic 1 | . 1 . Database Lockouts . | . . . Manual 9 | . 9 . Terminals 13 | . 13 . Fabricators . | . . . Repair Stations . | . . . Recycling Units 1 | . 1 . Scanalyzers . | . . . Garrison Access . | . . . Terminal Hacks 5 | . 5 . Branch Access Points 1 | . 1 . Terminal Index 1 | . 1 . Disarm Traps 1 | . 1 . Transport Status 1 | . 1 . Zone Layout 1 | . 1 . Fabricator Hacks . | . . . Repair Station Hacks . | . . . Recycling Unit Hacks 1 | . 1 . Retrieve Components 1 | . 1 . Scanalyzer . | . . . Garrison Access Hacks . | . . . Unauthorized Hacks . | . . . Terminals . | . . . Fabricators . | . . . Repair Stations . | . . . Recycling Units . | . . . Scanalyzers . | . . . Garrison Access . | . . . Data Cores Recovered . | . . . Used . | . . . Hacking Detections 4 | . 4 . Full Trace Events . | . . . Feedback Events . | . . . Feedback Blocked . | . . . Robot Schematics Acquired . | . . . Robots Built . | . . . Authchips . | . . . Time . | . . . Total Robot Build Rating . | . . . Part Schematics Acquired . | . . . Parts Built . | . . . Authchips . | . . . Time . | . . . Total Part Build Rating . | . . . Parts Repaired . | . . . Time . | . . . Parts Recycled . | . . . Recycled Matter . | . . . Retrieved Matter . | . . . Retrieved Components 4 | . 4 . Parts Scanalyzed . | . . . Part Schematics Acquired . | . . . Parts Damaged . | . . . Bothacking | -11 -10 -10 ------------ Run | Yrd Mat Sub Used RIF Installer . | . . . Robots Hacked . | . . . Non-combat . | . . . Combat . | . . . Robot Hacks Applied . | . . . Relay Couplers Released . | . . . Fabnet Peak Effective % . | . . . Robots Rewired . | . . . Allies Hacked . | . . . Hacks Repelled . | . . . Allies | -11 -10 -10 -------- Run | Yrd Mat Sub Total Allies . | . . . Largest Group . | . . . Highest-Rated Group . | . . . Highest-Rated Ally . | . . . Total Orders . | . . . Ally Attacks . | . . . Total Damage . | . . . Kills . | . . . Allies Corrupted . | . . . Allies Melted . | . . . Intel | -11 -10 -10 ------- Run | Yrd Mat Sub Robot Analysis Total . | . . . Derelict Logs Recovered . | . . . Drone Launches . | . . . Drone Recoveries . | . . . Exploration | -11 -10 -10 ------------- Run | Yrd Mat Sub Turns Passed 1966 | 139 1654 173 Spaces Moved 722 | 61 607 54 Core 6 | 6 . . Treads . | . . . Legs 395 | 55 313 27 Wheels 321 | . 294 27 Hover . | . . . Flight . | . . . Fastest Speed 50 | 50 95 115 Average Speed 147 | 113 147 187 Slowest Speed 260 | 120 260 260 Overloaded Moves . | . . . Propulsion Burnouts . | . . . Robots Hopped . | . . . Cave-ins Triggered 1 | . 1 . Exploration Rate (%) 27 | 4 72 5 Regions Visited 2 Branch Regions 1 Pre-discovered Areas . | . . . Known Exits Taken . | . . . Unknown Exits Taken 2 | 1 1 . Scrap Searched . | . . . Spaces Dug 10 | . 10 . Terrain Destroyed 49 | . 49 . Melee 10 | . 10 . Projectile . | . . . AOE 39 | . 39 . Terrain Rammed . | . . . Walls Destroyed . | . . . Machines Disabled . | . . . Actions | -11 -10 -10 --------- Run | Yrd Mat Sub Total 1500 | 117 1289 94 Wait 585 | 33 550 2 Move 720 | 60 606 54 Hop . | . . . Pick Up 48 | 8 37 3 Fast Attach 10 | 9 . 1 Attach 5 | . 4 1 Detach . | . . . Swap 30 | . 22 8 Drop 31 | 2 25 4 Fire 47 | 5 23 19 Melee 24 | . 22 2 Ram . | . . . Kick . | . . . Crush . | . . . Escape Stasis . | . . . Rewire . | . . . Trap . | . . . Miscellaneous . | . . . Route ------- -11/Scrapyard -10/Materials (discovered 3 exits: [*Mat] / *Min / [*Sub]) -10/Subcaves History --------- Turn | Location | Event 9 | -11/Scrapyard | Discovered new exit (range 15) 140 | -11/Scrapyard | Entered Materials 158 | -10/Materials | Identified exit to Mines 318 | -10/Materials | Build established: Mutant 413 | -10/Materials | Core integrity fell below 50% 842 | -10/Materials | Discovered new exit (range 8) 1093 | -10/Materials | Crushed by falling debris 1442 | -10/Materials | Discovered new exit (range 4) 1794 | -10/Materials | Entered Subcaves 1796 | -10/Subcaves | Shifting Twisted Machinery released Mak. Light Armor Plating 1878 | -10/Subcaves | Shifting Twisted Machinery released Slug Cannon 1917 | -10/Subcaves | Core integrity fell below 20% 1967 | -10/Subcaves | Destroyed by AL-US8(R) with Subdweller Machine Gun Last Messages --------------- Dropped Autogun. Acquired Scrap Shield Fragment. Dropped Autogun. Acquired Scrap Shield Fragment. Subatomizers dissect the Sub. Laser. System corrupted: Matter fused (-8). Subatomizers dissect the Sub. Laser. Slug Cannon falls loose from the Twisted Machinery. Dropped EM Shotgun. Acquired Slug Cannon. NB-04X(R) knocked back. NB-04X(R) suffers critical hit (Destroy). N1ZEUDS2DWUC3BISZ3P6 AL-US8(R) emerges from concealment. NB-04X(R) destroyed. Seismic Detector destroyed. Acquired 16 matter. Ion Engine destroyed. System corrupted: Slug Cannon jammed. Map ----- +----------------------------------------------------+ | ?????????????????????????????????????????????? | | ?????????????????????????????????????????????? | | ?????????????????????????????????????????????? | | ????????????????????#????? #?????????????????? | | ????????????????????# ??? #?????????????????? | | ???????????????????? ??? ??????????????????? | | ????????????????????# ??? ??????????????????? | | ????????????????????? ??? ??????????????????? | | ????????????????????? ??? ??????????????????? | | ????????????????????? ### ???????????????????? | | ????????????????????? ???????????????????? | | ?????????????????????? ???????????????????? | | ?????????????????????? #???????????????????? | | ?????????????????????? #???????????????????? | | ?????????????????????? #???????????????????? | | ??????????????????????# #???????????????????? | | ??????????????????????# ####????????????????? | | ??????????????????????# " ##???????????????? | | ??????????????????????# " #???????????????? | | ??????????????????????# ###???????????????? | | ?????????????#??####??# " ##????????????????? | | ????????????? ##"# #### " ##???????????????? | | ????????????## " " #???????????????? | | ????????##### "" "" & " #???????????????? | | ????????# ##" ""[ = " #???????????????? | | ????????# ###### ##@ " ##??????????????? | | ?????????# ##??###?## R" ##?????????????? | | ?????##???# "#???????# ""% #?????????????? | | ????## ##??# ##?######% """#?????????????? | | ?#### #### """ [###"" ### " #?????????????? | | ?# # ""!%[ ## ""##?????????????? | | ?# * """ """#??????????????? | | ?## [#### "" %#??????????????? | | ??##### ## ##??## #?????????????? | | ??????## ### #????# #?????????????? | | ???????#####?## #????# #?????????????? | | ??????????????####???? #?????????????? | | ????????????????????? #?????????????? | | ???????????????????? ##?????????????? | | ??????????????????? ##??????????????? | | ?????????????????? ###???????????????? | | ????????????????? ##?????????????????? | | ???????????????? #???????????????????? | | ????????????????? ????????????????????? | | ??????????????????? #????????????????????? | | ?????????????????????# #?????????????????????? | | ?????????????????????????????????????????????? | | ?????????????????????????????????????????????? | | ?????????????????????????????????????????????? | | ?????????????????????????????????????????????? | +----------------------------------------------------+ Best States ------------- Heat Dissipation 25 Energy Generation 10 Energy Capacity 250 Matter Stores 300 Matter Capacity 300 Sight Range 16 Terrain Scan Density 10 Evasion (%) 55 Item Schematics ----------------- None Robot Schematics ------------------ None Fabricated ------------ Nothing Alien Tech Used ----------------- None Achievements -------------- Part-time Excavator root@ Challenges ------------ None Game ------ Seed HeavyOpticalThruster Manual? 0 Play Time 00:22:55 Cumulative 8.9 hours Start 2024.04.12 @ 00:11:59 End 2024.04.12 @ 00:41:55 Sessions 1 Manual Loads 0 Difficulty Rogue Special Mode None Game No. 12 Rogue 12 Adventurer 0 Explorer 0 Win Type - Total 0 Types 0/0/0/0/0/0/0/0/0 Lore% 5 Gallery% 15 Achievement% 14 Wizard Run 0 Options --------- Layout 1 ASCII 0 Keyboard 0 Movement Arrows Keybinds 0 Fullscreen 0 Font 28/SmallcapsGlow Map View 50x35 Zoom Use 8% Tactical HUD 0 Map Filters NONE Filters NONE Steam 1 RUN: 4bfeb0f9-feb9-4c6c-8b44-faa699e1696f